bitfinex/quotes_SOLUSD_20251031
["timestamp","ask_amount","ask_price","bid_price","bid_amount"]
[1761874880549,19.43992727,186.57,186.52,3.80246832]
[1761874881343,0.68,186.56,186.5,3.10246832]
[1761874881538,3.78246832,186.56,186.5,3.10246832]
[1761874881744,3.78246832,186.56,186.5,0.7]
[1761874881939,3.78246832,186.56,186.5,3.80246832]
[1761874882268,5.36049316,186.55,186.5,3.80246832]
[1761874882468,5.36049316,186.55,186.51,3.80246832]
[1761874883753,5.36049316,186.55,186.52,3.80246832]
[1761874884264,5.36049316,186.55,186.53,0.7]
[1761874884564,5.36049316,186.55,186.54,3.10246832]
[1761874884867,5.35991852,186.57,186.54,3.10246832]
[1761874885064,5.35991852,186.57,186.56,3.10246832]
[1761874885282,5.35962926,186.59,186.56,3.10246832]
[1761874885571,5.35962926,186.59,186.57,3.10246832]
[1761874885780,3.78246832,186.58,186.48,9.98882769]
[1761874886064,20.592,186.54,186.48,0.2]
[1761874886270,24.37446832,186.54,186.48,0.2]
[1761874887466,3.96202651,186.53,186.48,0.2]
[1761874887982,18.76373773,186.53,186.48,0.2]
[1761874888464,18.76373773,186.53,186.5,3.10246832]
[1761874888465,5.36106792,186.53,186.5,3.10246832]
[1761874888866,5.36106792,186.53,186.51,0.69]
[1761874889583,18.76172607,186.55,186.5,3.10246832]
[1761874889768,3.96247952,186.54,186.5,3.10246832]
[1761874890083,3.96247952,186.54,186.5,3.79246832]
[1761874890769,4.67247952,186.54,186.5,3.79246832]
[1761874891776,5.36106792,186.53,186.5,3.79246832]
[1761874892959,5.36106792,186.53,186.51,3.79246832]
[1761874893265,5.36081218,186.54,186.52,3.10246832]
[1761874893460,17.21214346,186.58,186.48,5.56248922]
[1761874893461,13.39967514,186.58,186.53,3.79246832]
[1761874893663,9.32630067,186.57,186.55,3.10246832]
[1761874893958,5.35991852,186.57,186.55,3.10246832]
[1761874894159,5.35991852,186.57,186.51,20.592]
[1761874894360,23.69446832,186.53,186.48,0.2]
[1761874894579,3.96890169,186.52,186.48,0.2]
[1761874894759,7.78137001,186.52,186.48,0.2]
[1761874894967,3.96890169,186.51,186.48,0.2]
[1761874895169,0.71,186.52,186.48,0.2]
[1761874895481,4.67893412,186.52,186.48,0.2]
[1761874895786,5.3616428,186.51,186.48,0.2]
[1761874895974,5.3616428,186.51,186.48,0.89]
[1761874897461,5.36221781,186.49,186.48,0.89]
[1761874898699,18.76503957,186.52,186.48,0.89]
[1761874898860,20.592,186.48,186.44,0.2]
[1761874899181,3.97472694,186.47,186.44,0.2]
[1761874899367,3.97472694,186.46,186.44,0.2]
[1761874899568,3.97472694,186.45,186.44,0.2]
[1761874899770,13.76355463,186.45,186.44,1e-08]
[1761874900069,11.27665913,186.45,186.44,1e-08]
[1761874900265,11.27592389,186.45,186.44,1e-08]
[1761874900969,16.63929208,186.45,186.44,1e-08]
[1761874901687,12.82682376,186.45,186.44,1e-08]
[1761874901860,3.97472694,186.45,186.44,0.69000001]
[1761874902185,3.81246832,186.52,186.44,3.79246833]
[1761874902367,3.97813723,186.51,186.46,3.10246832]
[1761874902568,3.97813723,186.5,186.46,3.10246832]
[1761874902787,3.97813723,186.49,186.46,3.79246832]
[1761874902969,3.97813723,186.48,186.46,3.79246832]
[1761874903280,33.99521006,186.53,186.47,3.79246832]
[1761874903594,12.8367533,186.52,186.48,3.10246832]
[1761874903880,3.98268419,186.51,186.48,3.10246832]
[1761874904096,3.98268419,186.5,186.46,5.36303603]
[1761874904279,0.71,186.54,186.49,3.10246832]
[1761874904586,3.9844277,186.53,186.49,3.10246832]
[1761874904790,7.4783004,186.52,186.49,3.10246832]
[1761874904960,3.9844277,186.51,186.49,3.10246832]
[1761874905161,3.9844277,186.5,186.49,3.10246832]
[1761874906092,3.9844277,186.5,186.49,3.79246832]
[1761874907078,3.9844277,186.5,186.49,3.10246832]
[1761874907385,3.9844277,186.5,186.48,3.10246832]
[1761874907573,3.9844277,186.49,186.48,3.10246832]
[1761874907770,3.9844277,186.49,186.48,3.79246832]
[1761874907968,3.9844277,186.49,186.48,3.10246832]
[1761874908370,3.9844277,186.49,186.48,3.79246832]
[1761874910376,3.9844277,186.49,186.48,0.69]
[1761874910570,3.9844277,186.49,186.48,3.79246832]
[1761874910784,9.78882769,186.48,186.44,1e-08]
[1761874910985,7.49134621,186.47,186.44,1e-08]
[1761874911287,3.10246832,186.45,186.44,1e-08]
[1761874911586,10.59381453,186.45,186.44,1e-08]
[1761874911789,11.30381453,186.45,186.44,1e-08]
[1761874912161,7.49134621,186.45,186.44,1e-08]
[1761874912579,12.8547144,186.45,186.44,1e-08]
[1761874914189,9.34779589,186.45,186.44,1e-08]
[1761874914983,3.9844277,186.45,186.44,1e-08]
[1761874915184,0.71,186.52,186.44,3.79246833]
[1761874915484,5.06934159,186.45,186.44,1e-08]
[1761874915687,4.00343261,186.45,186.44,1e-08]
[1761874915881,9.7827742,186.45,186.44,1e-08]
[1761874916081,13.19756104,186.45,186.44,1e-08]
[1761874917078,18.56092923,186.45,186.44,1e-08]
[1761874918291,15.14614239,186.45,186.44,1e-08]
[1761874919388,10.0768008,186.45,186.44,1e-08]
[1761874919573,15.14614239,186.45,186.44,1e-08]
[1761874919773,10.0768008,186.45,186.44,1e-08]
[1761874920395,15.14614239,186.45,186.44,1e-08]
[1761874920696,18.5607207,186.45,186.44,1e-08]
[1761874920904,28.34954839,186.45,186.44,1e-08]
[1761874921073,31.95274909,186.45,186.44,1e-08]
[1761874921498,34.10392282,186.45,186.44,1e-08]
[1761874922009,47.4754075,186.45,186.44,1e-08]
[1761874922369,52.54474909,186.45,186.44,1e-08]
[1761874922783,47.4754075,186.45,186.44,1e-08]
[1761874922973,42.7559214,186.45,186.44,1e-08]
[1761874923179,34.2720015,186.45,186.44,1e-08]
[1761874923382,30.6688008,186.45,186.44,1e-08]
[1761874923681,29.9588008,186.45,186.44,1e-08]
[1761874923887,30.6388008,186.45,186.44,1e-08]
[1761874924399,30.38082769,186.35,186.34,1e-08]
[1761874924591,53.53583711,186.35,186.31,1e-08]
[1761874924796,14.85816928,186.32,186.31,1e-08]
[1761874924992,22.27370413,186.32,186.31,1e-08]
[1761874925189,23.14176216,186.32,186.31,1e-08]
[1761874925504,19.54097076,186.32,186.31,1e-08]
[1761874925890,14.85816928,186.33,186.31,1e-08]
[1761874926103,5.06934159,186.33,186.31,1e-08]
[1761874926291,3.99408602,186.32,186.31,1e-08]
[1761874926600,9.36119636,186.32,186.31,1e-08]
[1761874930403,9.36119636,186.32,186.25,0.2]
[1761874930404,25.96083925,186.26,186.25,0.2]
[1761874930601,9.78882769,186.25,186.23,6.89099]
[1761874930904,14.85816928,186.24,186.23,6.89099]
[1761874931106,5.06934159,186.24,186.23,6.89099]
[1761874931679,5.74934159,186.24,186.23,6.89099]
[1761874932486,11.11875739,186.24,186.23,6.89099]
[1761874932675,20.90758508,186.24,186.23,6.89099]
[1761874933014,20.592,186.21,186.14,0.72]
[1761874933212,5.06934159,186.19,186.14,0.72]
[1761874933379,5.06934159,186.19,186.12,0.1]
[1761874933582,5.06934159,186.19,186.15,0.72]
[1761874934389,5.74934159,186.19,186.12,0.82]
[1761874934599,11.12019931,186.19,186.12,0.82]
[1761874934797,20.592,186.16,186.07,5.37432146]
[1761874934982,5.06934159,186.14,186.07,5.37432146]
[1761874935188,5.06934159,186.12,186.0,14.40009347]
[1761874935405,20.592,186.16,186.03,5.06934159]
[1761874935591,5.06934159,186.12,186.03,9.78882769]
[1761874935981,5.06934159,186.12,186.03,14.85816928]
[1761874936402,10.44227051,186.12,186.04,5.37518813]
[1761874936803,20.592,186.15,186.05,10.47882769]
[1761874936983,5.06934159,186.12,186.05,0.69]
[1761874937182,20.592,186.11,186.06,0.69]
[1761874937405,5.06934159,186.13,186.06,5.75934159]
[1761874937588,5.06934159,186.13,186.06,0.69]
[1761874937794,5.06934159,186.13,186.07,0.69]
[1761874937990,20.592,186.14,186.08,5.06934159]
[1761874938195,25.66134159,186.14,186.09,0.69]
[1761874938391,5.37258905,186.13,186.09,0.69]
[1761874938709,4.4893212,186.28,186.12,10.13868318]
[1761874939013,4.4893212,186.28,186.17,5.06934159]
[1761874939014,5.06934159,186.25,186.17,5.06934159]
[1761874939214,5.06934159,186.22,186.16,0.69]
[1761874939379,21.272,186.24,186.13,0.69]
[1761874939579,3.95261099,186.23,186.13,0.69]
[1761874939794,5.06934159,186.18,186.13,0.69]
[1761874940215,5.06934159,186.2,186.13,0.69]
[1761874940402,5.37085772,186.19,186.14,5.06934159]
[1761874940797,5.37085772,186.19,186.15,0.69]
[1761874941102,5.06934159,186.2,186.15,0.69]
[1761874943207,23.86444614,186.22,186.15,5.75934159]
[1761874943385,5.06934159,186.19,186.08,20.592]
[1761874943586,5.06934159,186.19,186.12,5.06934159]
[1761874944112,5.06934159,186.17,186.09,5.06934159]
[1761874944415,5.06934159,186.17,186.07,20.592]
[1761874944416,5.06934159,186.17,186.1,0.69]
[1761874944596,40.06899248,186.2,186.12,5.06934159]
[1761874944597,5.06934159,186.19,186.12,5.06934159]
[1761874944801,3.94350855,186.18,186.12,5.06934159]
[1761874945286,5.37143471,186.17,186.11,5.06934159]
[1761874945486,5.37143471,186.17,186.12,5.06934159]
[1761874945706,5.37143471,186.17,186.13,5.06934159]
[1761874945914,5.06934159,186.22,186.15,5.06934159]
[1761874946097,5.37028086,186.21,186.15,5.06934159]
[1761874946610,18.79598302,186.21,186.15,5.06934159]
[1761874948017,13.42570216,186.21,186.15,5.75934159]
[1761874948718,5.36999248,186.22,186.17,5.06934159]
[1761874949090,5.36999248,186.22,186.17,5.78934159]
[1761874949392,5.36912751,186.25,186.19,5.06934159]
[1761874949915,5.36912751,186.25,186.2,0.72]
[1761874950292,5.36912751,186.25,186.21,5.06934159]
[1761874950612,5.36883786,186.27,186.22,0.72]
[1761874950810,3.94633338,186.26,186.23,5.06934159]
[1761874952217,5.36912751,186.25,186.23,5.78934159]
[1761874952400,5.36826283,186.28,186.23,5.78934159]
[1761874952603,3.94993815,186.27,186.24,0.72]
[1761874952803,3.94993815,186.27,186.24,5.78934159]
[1761874954116,9.31867761,186.27,186.24,5.78934159]
[1761874954319,3.94993815,186.26,186.24,5.78934159]
[1761874954915,3.94993815,186.26,186.25,0.72]
[1761874955227,3.55487673,186.29,186.25,0.72]
[1761874955516,20.592,186.33,186.28,5.06934159]
[1761874955693,3.95868796,186.32,186.29,5.78934159]
[1761874956014,3.55487673,186.33,186.31,5.06934159]
[1761874956190,3.95868439,186.32,186.31,5.06934159]
[1761874956391,3.95868439,186.32,186.3,0.72]
[1761874956591,8.92141102,186.34,186.31,5.06934159]
[1761874956802,3.9603487,186.33,186.31,5.06934159]
[1761874957018,3.9603487,186.32,186.31,5.06934159]
[1761874957314,3.9603487,186.32,186.29,5.06934159]
[1761874957511,3.9603487,186.31,186.29,5.06934159]
[1761874957703,3.55487673,186.33,186.29,5.06934159]
[1761874957704,3.9603487,186.3,186.29,5.06934159]
[1761874957902,3.9603487,186.3,186.29,0.72]
[1761874958099,3.9603487,186.3,186.29,5.78934159]
[1761874958437,3.9603487,186.31,186.29,0.72]
[1761874958714,3.9603487,186.3,186.28,5.06934159]
[1761874958896,3.55487673,186.33,186.3,5.06934159]
[1761874959098,3.96397521,186.32,186.3,5.06934159]
[1761874959305,3.96397521,186.31,186.3,5.78934159]
[1761874962421,5.365949,186.37,186.3,11.15702811]
[1761874962719,3.97414319,186.36,186.33,5.06934159]
[1761874963027,0.67,186.37,186.29,25.95989225]
[1761874963330,3.97378884,186.36,186.32,5.06934159]
[1761874963626,3.97378884,186.35,186.32,5.06934159]
[1761874963796,3.97378884,186.34,186.32,5.78934159]
[1761874963990,3.97378884,186.33,186.32,5.78934159]
[1761874964922,5.36599186,186.36,186.32,5.78934159]
[1761874965117,3.97860599,186.35,186.33,5.06934159]
[1761874965305,3.97860599,186.34,186.33,5.78934159]
[1761874965721,3.97860599,186.34,186.31,0.72]
[1761874965926,3.97860599,186.33,186.32,5.06934159]
[1761874966221,5.36656685,186.34,186.32,5.06934159]
[1761874966411,3.97860599,186.33,186.32,5.06934159]
[1761874966803,3.97860599,186.33,186.32,0.72]
[1761874967025,3.97860599,186.33,186.32,5.78934159]
[1761874967318,4.24712225,186.37,186.32,5.78934159]
[1761874967319,3.57712225,186.37,186.32,5.78934159]
[1761874967515,3.98137681,186.36,186.34,5.06934159]
[1761874967717,3.98137681,186.35,186.33,0.72]
[1761874967925,5.36571304,186.37,186.33,0.72]
[1761874968228,3.98116103,186.36,186.33,0.72]
[1761874968415,3.98116103,186.35,186.33,0.72]
[1761874968608,5.36539071,186.38,186.33,0.72]
[1761874968818,3.98272613,186.37,186.35,5.06934159]
[1761874969021,3.98272613,186.36,186.35,5.06934159]
[1761874969214,5.36539071,186.38,186.35,5.78934159]
[1761874969523,3.9839075,186.37,186.34,5.06934159]
[1761874969730,3.9839075,186.36,186.34,5.06934159]
[1761874969906,3.9839075,186.35,186.34,0.72]
[1761874970101,3.9839075,186.37,186.34,5.78934159]
[1761874970314,5.36539071,186.38,186.35,5.06934159]
[1761874970515,3.9825009,186.37,186.35,5.78934159]
[1761874971118,5.36539071,186.38,186.35,5.78934159]
[1761874971425,9.34723334,186.37,186.35,5.78934159]
[1761874971614,5.36572623,186.37,186.35,5.78934159]
[1761874972413,5.36538255,186.38,186.35,5.78934159]
[1761874973223,3.98024939,186.37,186.35,5.78934159]
[1761874973522,5.36538255,186.38,186.35,5.78934159]
[1761874973523,5.36538255,186.38,186.35,5.06934159]
[1761874973727,3.97914176,186.37,186.35,5.06934159]
[1761874974145,21.262,186.36,186.25,0.72]
[1761874974351,20.592,186.32,186.26,5.06934159]
[1761874974646,20.592,186.31,186.26,5.06934159]
[1761874974800,20.592,186.31,186.26,5.78934159]
[1761874975004,20.592,186.31,186.27,0.72]
[1761874975203,5.36768652,186.3,186.27,0.72]
[1761874975536,5.36768652,186.3,186.27,8.38599591]
[1761874976434,5.36768652,186.3,186.27,0.72]
[1761874976851,5.36745172,186.31,186.27,0.72]
[1761874977447,5.36711034,186.32,186.27,0.72]
[1761874977948,18.7848862,186.32,186.27,0.72]
[1761874978244,0.67,186.31,186.24,0.72]
[1761874979326,5.36768652,186.3,186.24,0.72]
[1761874981327,18.7848862,186.32,186.24,6.08937769]
[1761874981836,5.36711034,186.32,186.25,0.71]
[1761874982843,5.36711034,186.32,186.3,7.66599591]
[1761874984416,6.08711034,186.32,186.28,7.66599591]
[1761874985043,6.08711034,186.32,186.28,8.37599591]
[1761874985637,5.36711034,186.32,186.28,8.37599591]
[1761874988144,5.36711034,186.32,186.28,0.71]
[1761874988530,5.36711034,186.32,186.29,7.66599591]
[1761874989051,5.36711034,186.32,186.29,8.37599591]
[1761874989447,5.36711034,186.32,186.29,0.71]
[1761874989636,5.36711034,186.32,186.29,8.37599591]
[1761874990131,5.36768652,186.3,186.26,7.66599591]
[1761874990520,6.08768652,186.3,186.26,7.66599591]
[1761874990736,6.08768652,186.3,186.26,8.37599591]
[1761874991333,3.99874025,186.29,186.26,8.37599591]
[1761874991527,6.08768652,186.3,186.27,7.66599591]
[1761874991726,3.99873984,186.29,186.27,7.66599591]
[1761874991928,5.36768652,186.3,186.27,7.66599591]
[1761874992128,3.5944745,186.32,186.29,7.66599591]
[1761874992348,3.5944745,186.36,186.31,7.66599591]
[1761874992537,3.99992252,186.35,186.32,0.71]
[1761874992739,3.5944745,186.38,186.32,0.71]
[1761874993032,3.99934757,186.37,186.32,0.71]
[1761874993236,9.15961441,186.39,186.32,0.71]
[1761874993525,4.00100165,186.38,186.32,0.71]
[1761874993726,9.15961441,186.39,186.37,7.66599591]
[1761874993952,4.00099962,186.38,186.37,7.66599591]
[1761874994351,7.59547412,186.38,186.37,7.66599591]
[1761874996439,12.96085667,186.38,186.37,7.66599591]
[1761874997757,7.59547412,186.38,186.37,7.66599591]
[1761874999662,7.59547412,186.38,186.37,8.32599591]
[1761874999963,0.2,186.39,186.37,13.69161219]
[1761875000141,0.2,186.39,186.38,8.32599591]
[1761875001662,0.2,186.39,186.38,13.69137846]
[1761875002040,0.2,186.39,186.38,23.48020615]
[1761875002949,0.2,186.39,186.38,23.76452929]
[1761875006767,3.99837315,186.47,186.42,9.78882769]
[1761875007073,0.86,186.51,186.46,7.66599591]
[1761875007364,4.8543747,186.51,186.49,7.66599591]
[1761875007669,0.2,186.51,186.5,7.66599591]
[1761875009267,0.2,186.51,186.5,8.34599591]
[1761875009856,0.2,186.51,186.5,23.49675389]
[1761875010060,0.2,186.51,186.5,23.78107703]
[1761875010778,0.2,186.53,186.52,0.28432314]
[1761875010990,0.2,186.53,186.52,8.63031905]
[1761875011945,0.2,186.53,186.52,13.9916744]
[1761875016882,0.2,186.53,186.48,26.81214947]
[1761875016883,0.92,186.53,186.39,0.68]
[1761875017198,20.592,186.45,186.42,7.66599591]
[1761875017402,20.592,186.45,186.41,7.66599591]
[1761875017711,0.72,186.47,186.43,7.66599591]
[1761875017995,28.25799591,186.49,186.39,0.68]
[1761875017996,20.592,186.49,186.44,7.66599591]
[1761875018188,20.592,186.49,186.31,13.41804802]
[1761875018189,0.72,186.48,186.45,7.66599591]
[1761875018392,21.312,186.48,186.45,7.66599591]
[1761875018589,0.72,186.48,186.44,7.66599591]
[1761875018775,5.36279294,186.47,186.44,7.66599591]
[1761875019183,6.08279294,186.47,186.44,7.66599591]
[1761875020402,6.08279294,186.47,186.42,0.68]
[1761875020603,6.08279294,186.47,186.44,7.66599591]
[1761875022593,5.36250536,186.48,186.42,0.68]
[1761875022785,0.72,186.46,186.44,7.66599591]
[1761875022990,6.08250536,186.48,186.45,7.66599591]
[1761875023502,0.72,186.47,186.44,7.66599591]
[1761875024701,5.36250536,186.48,186.45,7.66599591]
[1761875025210,6.08250536,186.48,186.45,7.66599591]
[1761875025379,0.72,186.47,186.45,7.66599591]
[1761875025999,5.36250536,186.48,186.45,7.66599591]
[1761875026278,6.08250536,186.48,186.45,7.66599591]
[1761875026692,5.36250536,186.48,186.46,7.66599591]
[1761875027299,5.36250536,186.48,186.45,7.66599591]
[1761875027300,6.08250536,186.48,186.45,7.66599591]
[1761875028484,5.36250536,186.48,186.45,7.66599591]
[1761875028789,5.36250536,186.48,186.46,7.66599591]
[1761875029107,14.24903066,186.54,186.43,0.68]
[1761875029108,0.2,186.53,186.47,7.66599591]
[1761875029416,0.2,186.53,186.52,7.66599591]
[1761875034885,0.2,186.53,186.5,8.34599591]
[1761875036411,5.56118352,186.53,186.5,8.34599591]
[1761875036711,0.2,186.53,186.5,8.34599591]
[1761875036902,3.78319491,186.53,186.5,8.34599591]
[1761875037301,3.78319491,186.53,186.5,5.74699462]
[1761875037500,0.2,186.53,186.5,5.74699462]
[1761875037697,4.18357684,186.53,186.5,5.74699462]
[1761875037905,4.30502751,186.52,186.46,0.68]
[1761875038102,3.58524455,186.51,186.48,5.06699462]
[1761875038302,10.62820745,186.53,186.48,5.74699462]
[1761875038504,7.57130765,186.52,186.48,5.74699462]
[1761875038810,3.58626844,186.51,186.48,5.74699462]
[1761875038990,6.03146594,186.52,186.48,5.74699462]
[1761875039185,3.58631242,186.51,186.48,0.68]
[1761875039393,0.67,186.52,186.48,2.67066754]
[1761875039601,0.2,186.53,186.49,2.65066754]
[1761875039831,3.58713753,186.52,186.49,2.65066754]
[1761875040129,3.58733592,186.51,186.49,1.99066754]
[1761875040419,6.2310761,186.53,186.49,1.99066754]
[1761875040611,7.57546169,186.52,186.49,1.99066754]
[1761875040802,3.58824083,186.51,186.48,7.35315044]
[1761875041004,6.2310761,186.53,186.48,8.01315044]
[1761875041211,7.57642567,186.52,186.49,0.66]
[1761875041402,7.57786732,186.51,186.48,1.99066754]
[1761875041717,10.23922024,186.5,186.44,2.65066754]
[1761875041921,7.5785527,186.49,186.45,2.65066754]
[1761875042100,1.99066754,186.51,186.46,0.66]
[1761875042299,7.58055502,186.5,186.46,0.66]
[1761875042530,7.58055502,186.5,186.41,13.55335957]
[1761875042531,7.58055502,186.49,186.44,2.65066754]
[1761875042701,7.58055502,186.49,186.42,5.36417353]
[1761875042702,9.57344262,186.48,186.42,8.0148665]
[1761875042896,7.58277508,186.47,186.42,8.0148665]
[1761875043229,7.58514118,186.46,186.42,8.0148665]
[1761875043417,5.36279294,186.47,186.43,0.66]
[1761875043595,7.58715258,186.46,186.43,0.66]
[1761875043792,6.03279294,186.47,186.43,0.66]
[1761875044019,7.58740669,186.46,186.43,0.66]
[1761875044214,3.5938812,186.45,186.43,0.66]
[1761875044515,6.03279294,186.47,186.43,0.66]
[1761875044719,7.59132361,186.46,186.43,0.66]
[1761875044910,7.59132361,186.45,186.43,0.66]
[1761875045108,5.36394357,186.43,186.37,0.66]
[1761875045335,9.58224434,186.42,186.37,0.66]
[1761875045615,7.5915768,186.41,186.39,1.99066754]
[1761875045824,25.95579071,186.44,186.39,1.99066754]
[1761875046025,7.59320273,186.43,186.41,1.99066754]
[1761875046319,3.59663551,186.45,186.42,2.65066754]
[1761875046506,7.59302749,186.44,186.42,2.65066754]
[1761875046691,5.36333559,186.46,186.42,1.99066754]
[1761875046895,5.36333559,186.46,186.43,0.66]
[1761875046896,7.5928782,186.45,186.43,0.66]
[1761875047096,7.5928782,186.44,186.41,1.99066754]
[1761875047299,5.36340657,186.45,186.4,2.65066754]
[1761875047496,7.59330975,186.44,186.4,2.65066754]
[1761875047723,7.59356865,186.43,186.4,2.65066754]
[1761875047911,3.5967407,186.44,186.41,0.66]
[1761875048216,7.59368035,186.43,186.38,28.60805009]
[1761875048433,6.25751953,186.44,186.38,28.60805009]
[1761875048602,7.59369268,186.43,186.38,28.60805009]
[1761875048801,3.59685199,186.43,186.38,28.60805009]
[1761875048998,3.59685199,186.43,186.39,2.65066754]
[1761875049322,9.63060824,186.44,186.39,8.01575145]
[1761875049502,8.96060824,186.44,186.4,0.66]
[1761875050032,5.36375625,186.44,186.4,2.65066754]
[1761875051122,5.36375625,186.44,186.4,0.66]
[1761875051326,5.36375625,186.44,186.36,13.41485106]
[1761875051327,2.66066754,186.43,186.36,5.36572513]
[1761875051493,6.65710699,186.43,186.38,1.99066754]
[1761875051698,2.66066754,186.43,186.38,2.65066754]
[1761875051898,0.67,186.43,186.38,2.65066754]
[1761875052200,6.03408454,186.43,186.38,2.65066754]
[1761875052607,6.03408454,186.43,186.39,0.66]
[1761875053115,6.03408454,186.43,186.39,2.65066754]
[1761875053508,5.36408454,186.43,186.39,2.65066754]
[1761875053704,0.67,186.45,186.41,1.99066754]
[1761875053928,5.36310401,186.46,186.42,1.99066754]
[1761875054421,6.03310401,186.46,186.42,1.99066754]
[1761875055198,0.67,186.46,186.42,1.99066754]
[1761875055621,0.67,186.46,186.42,2.65066754]
[1761875056433,6.03328891,186.46,186.42,2.65066754]
[1761875057312,6.03328891,186.46,186.42,0.66]
[1761875058352,3.99772183,186.45,186.42,0.66]
[1761875058637,9.36111696,186.45,186.42,0.66]
[1761875058824,5.36339513,186.45,186.42,0.66]
[1761875059809,5.36339513,186.45,186.42,1.99066754]
[1761875060510,20.592,186.41,186.33,0.66]
[1761875060734,1.99066754,186.36,186.32,5.36450241]
[1761875060918,11.07971643,186.4,186.32,5.36450241]
[1761875060919,3.5992796,186.39,186.32,5.36450241]
[1761875061126,1.99066754,186.37,186.33,0.66]
[1761875061310,4.00319602,186.36,186.33,0.66]
[1761875061509,9.36924075,186.36,186.33,0.66]
[1761875061808,8.96498686,186.37,186.33,0.66]
[1761875062009,4.00317916,186.36,186.33,2.65066754]
[1761875062239,3.5992796,186.38,186.34,1.99066754]
[1761875062532,4.00136132,186.37,186.32,1.99066754]
[1761875062708,4.00136132,186.37,186.33,0.66]
[1761875063323,11.6354412,186.38,186.33,0.66]
[1761875065024,1.99066754,186.37,186.33,0.66]
[1761875066532,7.35648045,186.37,186.33,0.66]
[1761875069834,5.36581291,186.37,186.33,0.66]
[1761875070037,1.99066754,186.36,186.33,0.66]
[1761875072716,1.99066754,186.36,186.31,67.06738459]
[1761875072916,1.99066754,186.36,186.32,0.66]
[1761875073239,1.99066754,186.4,186.34,1.99066754]
[1761875073438,1.99066754,186.39,186.33,11.77949523]
[1761875073617,1.99066754,186.39,186.33,12.43949523]
[1761875073821,1.99066754,186.39,186.34,0.66]
[1761875074430,1.99066754,186.39,186.34,2.65066754]
[1761875074927,7.35581114,186.39,186.35,0.66]
[1761875075441,5.3651436,186.39,186.35,0.66]
[1761875075637,7.35581114,186.39,186.35,0.66]
[1761875076729,7.35633798,186.37,186.33,0.66]
[1761875076925,1.99066754,186.36,186.33,0.66]
[1761875078139,31.30564065,186.46,186.34,1.99066754]
[1761875078334,1.99066754,186.4,186.35,1.99066754]
[1761875078536,9.61687375,186.45,186.39,1.99066754]
[1761875078742,1.99066754,186.43,186.38,1.99066754]
[1761875079219,1.99066754,186.43,186.39,0.66]
[1761875079421,1.99066754,186.4,186.34,2.65066754]
[1761875079838,1.99066754,186.4,186.35,2.65066754]
[1761875080046,0.66,186.39,186.31,9.93098926]
[1761875080227,5.98682594,186.39,186.34,0.66]
[1761875080547,1.99066754,186.39,186.34,2.65066754]
[1761875080846,1.99066754,186.39,186.34,0.66]
[1761875081045,1.99066754,186.39,186.35,0.66]
[1761875082132,7.35594149,186.39,186.35,0.66]
[1761875082330,1.99066754,186.39,186.35,0.66]
[1761875082526,5.36394357,186.43,186.37,1.99066754]
[1761875082739,1.99066754,186.41,186.36,1.99066754]
[1761875082949,1.99066754,186.41,186.36,2.65066754]
[1761875083143,1.99066754,186.41,186.37,0.66]
[1761875083744,5.36451907,186.41,186.37,0.66]
[1761875084535,4.0030159,186.4,186.37,0.66]
[1761875085130,0.66,186.4,186.37,1.99066754]
[1761875085332,0.66,186.4,186.36,1.99066754]
[1761875085733,0.66,186.4,186.36,2.65066754]
[1761875085934,5.36501063,186.4,186.37,0.66]
[1761875086238,4.00568681,186.39,186.37,0.66]
[1761875086559,5.36501063,186.4,186.37,0.66]
[1761875086758,4.00595048,186.39,186.37,0.66]
[1761875086927,5.36501063,186.4,186.37,0.66]
[1761875087129,4.66595048,186.39,186.34,5.36648915]
[1761875087347,4.00789631,186.38,186.35,2.65066754]
[1761875087561,8.96666933,186.4,186.36,2.65066754]
[1761875087865,4.00787695,186.39,186.36,2.65066754]
[1761875088042,4.00787695,186.38,186.36,2.65066754]
[1761875088228,8.96666933,186.4,186.37,1.99066754]
[1761875088554,6.02457062,186.41,186.37,1.99066754]
[1761875088744,4.00838244,186.4,186.37,2.65066754]
[1761875088925,9.62622932,186.41,186.37,2.65066754]
[1761875089137,4.0084482,186.4,186.38,0.66]
[1761875089342,4.00914718,186.39,186.38,0.66]
[1761875089654,5.36457062,186.41,186.38,0.66]
[1761875089851,4.00907921,186.4,186.38,0.66]
[1761875090052,4.00914715,186.39,186.38,2.65066754]
[1761875090856,5.36457062,186.41,186.38,2.65066754]